[Event "Early-Titled-Tuesday-Blitz-January-16-2024"]
[Site "Chess.com"]
[Date "2024.01.16"]
[Round "6"]
[White "Tejas_Rama"]
[Black "vasblesk"]
[Result "1-0"]
[WhiteElo "2593"]
[BlackElo "2771"]
[TimeControl "180+1"]
[EndTime "9:12:18 PST"]
[Termination "Tejas_Rama won by resignation"]

1. d4 {[%clk 0:03:00.9]} 1... d5 {[%clk 0:02:58.2]} 2. c4 {[%clk 0:03:01.1]}
2... c6 {[%clk 0:02:57.9]} 3. Nc3 {[%clk 0:03:01.2]} 3... Nf6 {[%clk 0:02:58.2]}
4. e3 {[%clk 0:02:57.5]} 4... e6 {[%clk 0:02:56.6]} 5. Nf3 {[%clk 0:02:57.5]}
5... Nbd7 {[%clk 0:02:55.3]} 6. Be2 {[%clk 0:02:57.2]} 6... Bd6 {[%clk
0:02:47.4]} 7. O-O {[%clk 0:02:55.8]} 7... O-O {[%clk 0:02:45.7]} 8. b3 {[%clk
0:02:54.6]} 8... b6 {[%clk 0:02:43.5]} 9. Bb2 {[%clk 0:02:51.1]} 9... Bb7 {[%clk
0:02:42.9]} 10. Bd3 {[%clk 0:02:50]} 10... c5 {[%clk 0:02:40]} 11. cxd5 {[%clk
0:02:48.5]} 11... exd5 {[%clk 0:02:38.7]} 12. Rc1 {[%clk 0:02:47.8]} 12... a6
{[%clk 0:02:36.8]} 13. Re1 {[%clk 0:02:40.3]} 13... Re8 {[%clk 0:02:35]} 14. Ne2
{[%clk 0:02:32.3]} 14... Rc8 {[%clk 0:02:32.7]} 15. Ng3 {[%clk 0:02:29.8]} 15...
Bb8 {[%clk 0:02:30.7]} 16. Qe2 {[%clk 0:02:20.2]} 16... b5 {[%clk 0:02:23.9]}
17. dxc5 {[%clk 0:02:17.2]} 17... Nxc5 {[%clk 0:02:24.8]} 18. Bb1 {[%clk
0:02:10.8]} 18... Ne6 {[%clk 0:02:19]} 19. Rxc8 {[%clk 0:02:08.6]} 19... Bxc8
{[%clk 0:02:17.9]} 20. Rd1 {[%clk 0:01:57.8]} 20... Bb7 {[%clk 0:02:13.7]} 21.
Bc3 {[%clk 0:01:51.9]} 21... Nc5 {[%clk 0:01:58.6]} 22. Qb2 {[%clk 0:01:45.1]}
22... Ncd7 {[%clk 0:01:54.9]} 23. Nf5 {[%clk 0:01:32.4]} 23... a5 {[%clk
0:01:44.2]} 24. a3 {[%clk 0:01:28.7]} 24... Nc5 {[%clk 0:01:24.2]} 25. Nh6+
{[%clk 0:01:00.9]} 25... Kf8 {[%clk 0:01:21.9]} 26. Bxf6 {[%clk 0:00:44.7]}
26... Qxf6 {[%clk 0:01:19.9]} 27. Qxf6 {[%clk 0:00:44.5]} 27... gxf6 {[%clk
0:01:17.8]} 28. Nd4 {[%clk 0:00:41.3]} 28... b4 {[%clk 0:01:03.3]} 29. axb4
{[%clk 0:00:42.2]} 29... axb4 {[%clk 0:01:03.6]} 30. Ng4 {[%clk 0:00:31]} 30...
Kg7 {[%clk 0:00:56.8]} 31. Nf5+ {[%clk 0:00:31]} 31... Kf8 {[%clk 0:00:47.2]}
32. Nxf6 {[%clk 0:00:30.8]} 32... Rd8 {[%clk 0:00:47.3]} 33. Nxh7+ {[%clk
0:00:30.1]} 33... Kg8 {[%clk 0:00:45]} 34. Nf6+ {[%clk 0:00:29.9]} 34... Kh8
{[%clk 0:00:43.4]} 35. Rd4 {[%clk 0:00:26.5]} 35... Ne4 {[%clk 0:00:26.8]} 36.
Bxe4 {[%clk 0:00:23.9]} 36... Be5 {[%clk 0:00:26.3]} 37. Bd3 {[%clk 0:00:12.3]}
37... Bxf6 {[%clk 0:00:20]} 38. Rxb4 {[%clk 0:00:11.8]} 38... Bc8 {[%clk
0:00:20.7]} 39. Nd4 {[%clk 0:00:10.7]} 39... Be6 {[%clk 0:00:16.3]} 40. Kf1
{[%clk 0:00:06.2]} 40... Kg7 {[%clk 0:00:15.6]} 41. Ke2 {[%clk 0:00:06.5]} 41...
Be5 {[%clk 0:00:15.5]} 42. g3 {[%clk 0:00:06]} 42... Bg4+ {[%clk 0:00:15.4]} 43.
f3 {[%clk 0:00:06.3]} 43... Be6 {[%clk 0:00:15.9]} 44. Bf5 {[%clk 0:00:05.7]}
44... Bxd4 {[%clk 0:00:14.8]} 45. Bxe6 {[%clk 0:00:05.8]} 45... Bc5 {[%clk
0:00:02.5]} 46. Rb7 {[%clk 0:00:06]} 46... Kf6 {[%clk 0:00:03.1]} 47. Bxf7
{[%clk 0:00:06]} 47... Be7 {[%clk 0:00:03.8]} 48. Bh5 {[%clk 0:00:05.7]} 48...
Rh8 {[%clk 0:00:04.5]} 49. g4 {[%clk 0:00:05.6]} 49... Ke6 {[%clk 0:00:04]} 50.
Rb6+ {[%clk 0:00:06.1]} 50... Bd6 {[%clk 0:00:04.6]} 51. h4 {[%clk 0:00:06.2]}
51... Kd7 {[%clk 0:00:04.7]} 52. g5 {[%clk 0:00:06.5]} 52... Kc7 {[%clk
0:00:04.5]} 53. Rxd6 {[%clk 0:00:05.2]} 53... Kxd6 {[%clk 0:00:04.9]} 54. Bg4
{[%clk 0:00:05.3]} 54... Rxh4 {[%clk 0:00:05]} 55. g6 {[%clk 0:00:04.9]} 55...
Rh6 {[%clk 0:00:04.8]} 56. Bf5 {[%clk 0:00:05.1]} 56... Ke7 {[%clk 0:00:05]} 57.
Kd3 {[%clk 0:00:05.5]} 57... Kf6 {[%clk 0:00:05.4]} 58. e4 {[%clk 0:00:06.2]}
58... dxe4+ {[%clk 0:00:05.9]} 59. fxe4 {[%clk 0:00:07.1]} 59... Rh2 {[%clk
0:00:06.2]} 60. Kc4 {[%clk 0:00:07.2]} 60... Rc2+ {[%clk 0:00:06.5]} 61. Kb5
{[%clk 0:00:07.4]} 61... Rb2 {[%clk 0:00:06.2]} 62. b4 {[%clk 0:00:08]} 62...
Rb1 {[%clk 0:00:06.7]} 63. Ka5 {[%clk 0:00:08.6]} 63... Ra1+ {[%clk 0:00:06.5]}
64. Kb6 {[%clk 0:00:09]} 64... Rb1 {[%clk 0:00:07]} 65. b5 {[%clk 0:00:09.6]}
65... Ke7 {[%clk 0:00:06.9]} 66. Kc6 {[%clk 0:00:08]} 66... Rc1+ {[%clk
0:00:07.1]} 67. Kb7 {[%clk 0:00:08.6]} 67... Kd8 {[%clk 0:00:06.8]} 68. b6
{[%clk 0:00:09.1]} 68... Rc2 {[%clk 0:00:06.4]} 69. e5 {[%clk 0:00:09.6]} 69...
Rc1 {[%clk 0:00:05.9]} 70. e6 {[%clk 0:00:09]} 70... Rc3 {[%clk 0:00:05.8]} 71.
Be4 {[%clk 0:00:06.6]} 71... Ke7 {[%clk 0:00:04.6]} 72. Bd5 {[%clk 0:00:06.4]}
72... Rg3 {[%clk 0:00:03.4]} 73. Kc7 {[%clk 0:00:06.4]} 73... Rc3+ {[%clk
0:00:03.1]} 74. Kb8 {[%clk 0:00:05.6]} 74... Rg3 {[%clk 0:00:02.6]} 75. b7
{[%clk 0:00:03.8]} 75... Rxg6 {[%clk 0:00:02.7]} 76. Kc7 {[%clk 0:00:04.3]}
76... Rg3 {[%clk 0:00:03.4]} 77. b8=Q {[%clk 0:00:04.6]} 77... Rc3+ {[%clk
0:00:04.1]} 78. Bc6 {[%clk 0:00:05.3]} 1-0

[Event "Early-Titled-Tuesday-Blitz-January-16-2024"]
[Site "Chess.com"]
[Date "2024.01.16"]
[Round "6"]
[White "jefferyx"]
[Black "PLAYER_2006_M"]
[Result "0-1"]
[WhiteElo "3020"]
[BlackElo "2898"]
[TimeControl "180+1"]
[EndTime "9:12:24 PST"]
[Termination "PLAYER_2006_M won by resignation"]

1. d4 {[%clk 0:03:00.9]} 1... Nf6 {[%clk 0:02:59.3]} 2. Nf3 {[%clk 0:03:01.6]}
2... g6 {[%clk 0:02:59]} 3. Nbd2 {[%clk 0:03:02.2]} 3... d5 {[%clk 0:02:56.5]}
4. b3 {[%clk 0:03:02.6]} 4... Bg7 {[%clk 0:02:56.1]} 5. Bb2 {[%clk 0:03:03.3]}
5... O-O {[%clk 0:02:56.1]} 6. e3 {[%clk 0:03:04.1]} 6... Bf5 {[%clk 0:02:55.5]}
7. Be2 {[%clk 0:03:04.1]} 7... c6 {[%clk 0:02:54.8]} 8. O-O {[%clk 0:03:04.3]}
8... a5 {[%clk 0:02:55.5]} 9. a3 {[%clk 0:03:02.3]} 9... Ne4 {[%clk 0:02:53.2]}
10. Nxe4 {[%clk 0:03:02.3]} 10... Bxe4 {[%clk 0:02:53.6]} 11. Nd2 {[%clk
0:03:02.9]} 11... Bf5 {[%clk 0:02:53.3]} 12. c4 {[%clk 0:03:03.5]} 12... Nd7
{[%clk 0:02:50.6]} 13. b4 {[%clk 0:03:02.3]} 13... axb4 {[%clk 0:02:45.2]} 14.
axb4 {[%clk 0:03:03.2]} 14... Rxa1 {[%clk 0:02:45.5]} 15. Qxa1 {[%clk
0:03:04.1]} 15... dxc4 {[%clk 0:02:40.1]} 16. Nxc4 {[%clk 0:03:02.7]} 16... Be6
{[%clk 0:02:38.9]} 17. Qa7 {[%clk 0:03:00.6]} 17... Bxc4 {[%clk 0:02:23.1]} 18.
Bxc4 {[%clk 0:03:00.2]} 18... Qb6 {[%clk 0:02:24]} 19. Qa4 {[%clk 0:02:36.5]}
19... Qc7 {[%clk 0:02:22.9]} 20. Rc1 {[%clk 0:02:23.1]} 20... Nb6 {[%clk
0:02:16.8]} 21. Qa5 {[%clk 0:02:22.5]} 21... Ra8 {[%clk 0:02:15.4]} 22. Qg5
{[%clk 0:02:13.5]} 22... Bf6 {[%clk 0:02:08.9]} 23. Qg4 {[%clk 0:02:08.5]} 23...
Nxc4 {[%clk 0:02:04.9]} 24. Rxc4 {[%clk 0:02:09.4]} 24... Ra2 {[%clk 0:01:53.5]}
25. Bc1 {[%clk 0:01:58]} 25... Qb6 {[%clk 0:01:44.9]} 26. Qd1 {[%clk 0:01:52.8]}
26... e6 {[%clk 0:01:07.4]} 27. Qb3 {[%clk 0:01:50.8]} 27... Qa6 {[%clk
0:01:04]} 28. g3 {[%clk 0:01:46.5]} 28... Qa4 {[%clk 0:01:01.4]} 29. Qxa4 {[%clk
0:01:33.2]} 29... Rxa4 {[%clk 0:01:00]} 30. Bd2 {[%clk 0:01:34.1]} 30... Be7
{[%clk 0:00:57.8]} 31. Kf1 {[%clk 0:01:34.2]} 31... f5 {[%clk 0:00:56.3]} 32.
Ke2 {[%clk 0:01:34.5]} 32... Kf7 {[%clk 0:00:56.8]} 33. Kd3 {[%clk 0:01:35]}
33... Bd6 {[%clk 0:00:54.1]} 34. Kc2 {[%clk 0:01:35.1]} 34... Ra2+ {[%clk
0:00:52.3]} 35. Kd1 {[%clk 0:01:35.6]} 35... e5 {[%clk 0:00:50.3]} 36. dxe5
{[%clk 0:01:35.2]} 36... Bxe5 {[%clk 0:00:50.3]} 37. Rc2 {[%clk 0:01:34.4]}
37... Ra1+ {[%clk 0:00:42]} 38. Rc1 {[%clk 0:01:34.6]} 38... Ra2 {[%clk
0:00:42.5]} 39. Rc2 {[%clk 0:01:34.9]} 39... Rxc2 {[%clk 0:00:38]} 40. Kxc2
{[%clk 0:01:35.1]} 40... g5 {[%clk 0:00:38.7]} 41. Kd3 {[%clk 0:01:35]} 41... g4
{[%clk 0:00:35]} 42. e4 {[%clk 0:01:35.3]} 42... Ke6 {[%clk 0:00:35.2]} 43. Ke3
{[%clk 0:01:25.7]} 43... Bd6 {[%clk 0:00:35.1]} 44. f4 {[%clk 0:01:20.6]} 44...
b5 {[%clk 0:00:30.9]} 45. Kd4 {[%clk 0:01:14.5]} 45... h5 {[%clk 0:00:29.8]} 46.
Be1 {[%clk 0:01:13.4]} 46... Be7 {[%clk 0:00:27.7]} 47. Bd2 {[%clk 0:01:12.9]}
47... Bf8 {[%clk 0:00:27.3]} 48. Be1 {[%clk 0:01:12.9]} 48... Bg7+ {[%clk
0:00:27.2]} 49. Kd3 {[%clk 0:01:13.1]} 49... Bb2 {[%clk 0:00:25.8]} 50. Bd2
{[%clk 0:01:11.4]} 50... Bf6 {[%clk 0:00:25.8]} 51. Be1 {[%clk 0:01:11.5]} 51...
Bd8 {[%clk 0:00:26.2]} 52. Bc3 {[%clk 0:01:05]} 52... Bb6 {[%clk 0:00:25.8]} 53.
Bd4 {[%clk 0:01:05.4]} 53... Bd8 {[%clk 0:00:25.1]} 54. Bc5 {[%clk 0:01:01.5]}
54... h4 {[%clk 0:00:23.1]} 55. Bf2 {[%clk 0:00:34.5]} 55... h3 {[%clk
0:00:23.2]} 56. Bc5 {[%clk 0:00:33.4]} 56... Bc7 {[%clk 0:00:16.7]} 57. Ke3
{[%clk 0:00:30.3]} 57... Bd8 {[%clk 0:00:15.1]} 58. Kd3 {[%clk 0:00:30.5]} 58...
Bf6 {[%clk 0:00:15.3]} 59. Bd4 {[%clk 0:00:11.5]} 59... Be7 {[%clk 0:00:15.3]}
60. Bc3 {[%clk 0:00:05]} 60... c5 {[%clk 0:00:12.2]} 61. bxc5 {[%clk 0:00:05.9]}
61... Bxc5 {[%clk 0:00:12.7]} 62. exf5+ {[%clk 0:00:06.8]} 62... Kxf5 {[%clk
0:00:13]} 63. Bd4 {[%clk 0:00:07.5]} 63... Bd6 {[%clk 0:00:11]} 64. Be3 {[%clk
0:00:07.8]} 64... Bb4 {[%clk 0:00:08.8]} 65. Bf2 {[%clk 0:00:03.6]} 65... Ba5
{[%clk 0:00:09.2]} 66. Bg1 {[%clk 0:00:02.2]} 66... Be1 {[%clk 0:00:08.9]} 67.
Kd4 {[%clk 0:00:02.9]} 67... b4 {[%clk 0:00:08.3]} 68. Kc4 {[%clk 0:00:02.2]}
68... Ke4 {[%clk 0:00:08.8]} 69. Kb3 {[%clk 0:00:02.4]} 69... Bc3 {[%clk
0:00:08.2]} 70. Kc4 {[%clk 0:00:02.3]} 70... Kf3 {[%clk 0:00:08.2]} 71. f5
{[%clk 0:00:02.9]} 71... Ke4 {[%clk 0:00:07.9]} 72. f6 {[%clk 0:00:01.7]} 72...
Bxf6 {[%clk 0:00:07.8]} 0-1

[Event "Early-Titled-Tuesday-Blitz-January-16-2024"]
[Site "Chess.com"]
[Date "2024.01.16"]
[Round "6"]
[White "mbchess97"]
[Black "chess_blitz00"]
[Result "1-0"]
[WhiteElo "2347"]
[BlackElo "2464"]
[TimeControl "180+1"]
[EndTime "9:12:27 PST"]
[Termination "mbchess97 won on time"]

1. c4 {[%clk 0:03:00.4]} 1... Nf6 {[%clk 0:02:59.6]} 2. g3 {[%clk 0:02:59.9]}
2... e6 {[%clk 0:02:57]} 3. Bg2 {[%clk 0:03:00.1]} 3... c5 {[%clk 0:02:56.4]} 4.
Nf3 {[%clk 0:02:59]} 4... Nc6 {[%clk 0:02:54.2]} 5. O-O {[%clk 0:02:58.3]} 5...
Be7 {[%clk 0:02:55.1]} 6. Nc3 {[%clk 0:02:57.9]} 6... O-O {[%clk 0:02:56]} 7. d4
{[%clk 0:02:55.7]} 7... cxd4 {[%clk 0:02:55.9]} 8. Nxd4 {[%clk 0:02:56]} 8...
Qb6 {[%clk 0:02:54]} 9. Nb3 {[%clk 0:02:46.5]} 9... d6 {[%clk 0:02:51.5]} 10.
Be3 {[%clk 0:02:37.6]} 10... Qd8 {[%clk 0:02:50.3]} 11. Nd4 {[%clk 0:02:31]}
11... Nxd4 {[%clk 0:02:48.7]} 12. Bxd4 {[%clk 0:02:29.8]} 12... a6 {[%clk
0:02:48.6]} 13. Qd2 {[%clk 0:02:23.5]} 13... Bd7 {[%clk 0:02:43.6]} 14. Bxf6
{[%clk 0:02:14.9]} 14... Bxf6 {[%clk 0:02:42.1]} 15. Qxd6 {[%clk 0:02:13.7]}
15... Rc8 {[%clk 0:02:36.8]} 16. Ne4 {[%clk 0:02:04.6]} 16... Bxb2 {[%clk
0:02:33.9]} 17. Rab1 {[%clk 0:02:03.5]} 17... Bf6 {[%clk 0:02:26.6]} 18. Nxf6+
{[%clk 0:02:00.4]} 18... gxf6 {[%clk 0:02:27.5]} 19. Rxb7 {[%clk 0:01:57.9]}
19... Bc6 {[%clk 0:02:23.9]} 20. Qxd8 {[%clk 0:01:52]} 20... Rfxd8 {[%clk
0:02:24.8]} 21. Rb6 {[%clk 0:01:47.7]} 21... Bxg2 {[%clk 0:02:16.6]} 22. Kxg2
{[%clk 0:01:48.1]} 22... Rd2 {[%clk 0:02:15.5]} 23. Rxa6 {[%clk 0:01:43.3]}
23... Rxc4 {[%clk 0:02:14.8]} 24. e3 {[%clk 0:01:41.5]} 24... Rcc2 {[%clk
0:02:15.1]} 25. a4 {[%clk 0:01:41.3]} 25... Ra2 {[%clk 0:02:15.2]} 26. a5 {[%clk
0:01:40.7]} 26... Kg7 {[%clk 0:02:15.5]} 27. Kf3 {[%clk 0:01:39]} 27... Rdb2
{[%clk 0:02:12.4]} 28. g4 {[%clk 0:01:37.2]} 28... Kg6 {[%clk 0:02:05.1]} 29.
Ra8 {[%clk 0:01:33.9]} 29... f5 {[%clk 0:02:03.1]} 30. h3 {[%clk 0:01:33.4]}
30... Kf6 {[%clk 0:01:51.1]} 31. a6 {[%clk 0:01:33.3]} 31... Rb4 {[%clk
0:01:33.2]} 32. Rc1 {[%clk 0:01:05.7]} 32... Rbb2 {[%clk 0:01:27.1]} 33. Rf1
{[%clk 0:01:05.3]} 33... Ra5 {[%clk 0:01:21.9]} 34. Rh8 {[%clk 0:00:55.2]} 34...
Kg7 {[%clk 0:01:12.2]} 35. Ra8 {[%clk 0:00:53.8]} 35... Rba2 {[%clk 0:01:12.2]}
36. a7 {[%clk 0:00:52.5]} 36... fxg4+ {[%clk 0:01:08.1]} 37. hxg4 {[%clk
0:00:52.5]} 37... Rxa7 {[%clk 0:01:00.3]} 38. Rxa7 {[%clk 0:00:52.6]} 38... Rxa7
{[%clk 0:01:01]} 39. Rb1 {[%clk 0:00:51]} 39... Ra4 {[%clk 0:00:59.4]} 40. Rb3
{[%clk 0:00:49.8]} 40... Kg6 {[%clk 0:00:59.7]} 41. Kg3 {[%clk 0:00:49.6]} 41...
Kf6 {[%clk 0:00:54.9]} 42. f4 {[%clk 0:00:47]} 42... Ra1 {[%clk 0:00:53.3]} 43.
Kf3 {[%clk 0:00:44.4]} 43... Rg1 {[%clk 0:00:49.9]} 44. g5+ {[%clk 0:00:43.9]}
44... Kg6 {[%clk 0:00:45.3]} 45. Ke4 {[%clk 0:00:41.9]} 45... Ra1 {[%clk
0:00:39.1]} 46. Rb8 {[%clk 0:00:35.4]} 46... Ra4+ {[%clk 0:00:39.1]} 47. Kf3
{[%clk 0:00:35.6]} 47... Kg7 {[%clk 0:00:35.8]} 48. Rb7 {[%clk 0:00:32.9]} 48...
Ra8 {[%clk 0:00:31]} 49. Kg4 {[%clk 0:00:29.7]} 49... Kg6 {[%clk 0:00:28.9]} 50.
Rb6 {[%clk 0:00:26]} 50... Kg7 {[%clk 0:00:10.7]} 51. Kf3 {[%clk 0:00:20.3]}
51... Ra7 {[%clk 0:00:10.2]} 52. Ke4 {[%clk 0:00:19.4]} 52... Ra4+ {[%clk
0:00:07.6]} 53. Kf3 {[%clk 0:00:18.2]} 53... Ra7 {[%clk 0:00:08.1]} 54. Ke4
{[%clk 0:00:17.6]} 54... Kg6 {[%clk 0:00:05.7]} 55. Rc6 {[%clk 0:00:16.2]} 55...
Rb7 {[%clk 0:00:05.1]} 56. Kf3 {[%clk 0:00:16.4]} 56... Rd7 {[%clk 0:00:04.7]}
57. Rb6 {[%clk 0:00:16.3]} 57... Re7 {[%clk 0:00:03.5]} 58. Rc6 {[%clk
0:00:16.5]} 58... f6 {[%clk 0:00:03.6]} 59. gxf6 {[%clk 0:00:15.1]} 59... Kxf6
{[%clk 0:00:04.5]} 60. Ke4 {[%clk 0:00:15.6]} 60... Rg7 {[%clk 0:00:04.6]} 61.
Rb6 {[%clk 0:00:14.5]} 61... h5 {[%clk 0:00:04.8]} 62. Rb5 {[%clk 0:00:13.6]}
62... Rh7 {[%clk 0:00:04.2]} 63. Rb6 {[%clk 0:00:13.7]} 63... h4 {[%clk
0:00:04.2]} 64. f5 {[%clk 0:00:13.4]} 64... h3 {[%clk 0:00:02.9]} 65. Rxe6+
{[%clk 0:00:10.1]} 65... Kf7 {[%clk 0:00:03.1]} 66. Ra6 {[%clk 0:00:08.6]} 66...
h2 {[%clk 0:00:03.4]} 67. Ra7+ {[%clk 0:00:09]} 67... Kg8 {[%clk 0:00:03.9]} 68.
Ra8+ {[%clk 0:00:08]} 68... Kg7 {[%clk 0:00:04.4]} 69. Ra7+ {[%clk 0:00:07.7]}
69... Kh6 {[%clk 0:00:03.1]} 70. Ra1 {[%clk 0:00:07.5]} 70... Kg5 {[%clk
0:00:03.1]} 71. Rh1 {[%clk 0:00:05.9]} 71... Rh4+ {[%clk 0:00:02]} 72. Ke5
{[%clk 0:00:05.5]} 72... Rh3 {[%clk 0:00:01.8]} 73. e4 {[%clk 0:00:05.5]} 73...
Kh6 {[%clk 0:00:01.5]} 74. f6 {[%clk 0:00:05.4]} 74... Kg6 {[%clk 0:00:01.9]}
75. Ke6 {[%clk 0:00:05.1]} 75... Rh5 {[%clk 0:00:02.1]} 76. e5 {[%clk 0:00:05]}
76... Rh7 {[%clk 0:00:02.1]} 77. f7 {[%clk 0:00:04.1]} 77... Rxf7 {[%clk
0:00:01.9]} 78. Rxh2 {[%clk 0:00:04.5]} 78... Rf2 {[%clk 0:00:02.5]} 79. Rxf2
{[%clk 0:00:04.2]} 1-0

[Event "Early-Titled-Tuesday-Blitz-January-16-2024"]
[Site "Chess.com"]
[Date "2024.01.16"]
[Round "6"]
[White "Real_taiatai"]
[Black "RobertoJBM"]
[Result "0-1"]
[WhiteElo "2507"]
[BlackElo "2791"]
[TimeControl "180+1"]
[EndTime "9:13:03 PST"]
[Termination "RobertoJBM won by resignation"]

1. e4 {[%clk 0:03:00.9]} 1... c6 {[%clk 0:02:59.7]} 2. d4 {[%clk 0:02:58.4]}
2... d5 {[%clk 0:03:00.3]} 3. e5 {[%clk 0:02:59.3]} 3... Bf5 {[%clk 0:03:00.1]}
4. Nf3 {[%clk 0:02:59.7]} 4... e6 {[%clk 0:02:59.9]} 5. Be2 {[%clk 0:03:00]}
5... Nd7 {[%clk 0:03:00.6]} 6. O-O {[%clk 0:02:59.3]} 6... Bg6 {[%clk
0:03:01.1]} 7. c4 {[%clk 0:02:57.6]} 7... dxc4 {[%clk 0:03:00.6]} 8. Bxc4 {[%clk
0:02:56.7]} 8... Nb6 {[%clk 0:03:01.1]} 9. Be2 {[%clk 0:02:56.6]} 9... Ne7
{[%clk 0:03:01.4]} 10. Nc3 {[%clk 0:02:56.9]} 10... Nf5 {[%clk 0:03:01.6]} 11.
Bg5 {[%clk 0:02:50]} 11... Qd7 {[%clk 0:02:58.9]} 12. a4 {[%clk 0:02:43.6]}
12... a5 {[%clk 0:02:55.6]} 13. Qb3 {[%clk 0:02:37.2]} 13... Bb4 {[%clk
0:02:53.3]} 14. Rad1 {[%clk 0:02:29.6]} 14... O-O {[%clk 0:02:47.3]} 15. Ne4
{[%clk 0:02:28.8]} 15... Nd5 {[%clk 0:02:45.7]} 16. Bd3 {[%clk 0:02:12]} 16...
h6 {[%clk 0:02:42.5]} 17. Bd2 {[%clk 0:02:08.4]} 17... Bxd2 {[%clk 0:02:39.5]}
18. Rxd2 {[%clk 0:02:09.3]} 18... Nb4 {[%clk 0:02:39.6]} 19. Be2 {[%clk
0:01:34.7]} 19... Rfd8 {[%clk 0:02:34.5]} 20. g4 {[%clk 0:01:25.6]} 20... Ne7
{[%clk 0:02:26.1]} 21. Nd6 {[%clk 0:01:24.7]} 21... Nc8 {[%clk 0:02:21.2]} 22.
Nc4 {[%clk 0:01:19.9]} 22... b6 {[%clk 0:02:13.5]} 23. Nh4 {[%clk 0:01:18.8]}
23... Be4 {[%clk 0:02:11.6]} 24. f3 {[%clk 0:01:18.7]} 24... Bd5 {[%clk
0:02:11.5]} 25. Qe3 {[%clk 0:01:13.1]} 25... b5 {[%clk 0:01:46.1]} 26. Na3
{[%clk 0:01:03.6]} 26... bxa4 {[%clk 0:01:44.5]} 27. Bd1 {[%clk 0:01:03.6]}
27... Rb8 {[%clk 0:01:35.7]} 28. f4 {[%clk 0:00:58.7]} 28... Bb3 {[%clk
0:01:31.8]} 29. f5 {[%clk 0:00:51.6]} 29... c5 {[%clk 0:01:23.8]} 30. f6 {[%clk
0:00:35.3]} 30... cxd4 {[%clk 0:01:23]} 31. Qe4 {[%clk 0:00:27]} 31... Qd5
{[%clk 0:01:18.5]} 32. Qf4 {[%clk 0:00:23.8]} 32... g5 {[%clk 0:01:14.8]} 33.
Qg3 {[%clk 0:00:23.8]} 33... Bxd1 {[%clk 0:01:12.6]} 34. Rfxd1 {[%clk
0:00:23.3]} 34... gxh4 {[%clk 0:00:57.9]} 35. Qf4 {[%clk 0:00:20.2]} 35... Qc5
{[%clk 0:00:24]} 36. Qxh6 {[%clk 0:00:19.8]} 36... Qf8 {[%clk 0:00:24.7]} 37.
Qxh4 {[%clk 0:00:19.3]} 37... d3 {[%clk 0:00:21]} 38. g5 {[%clk 0:00:19.1]}
38... Qc5+ {[%clk 0:00:12.2]} 39. Kh1 {[%clk 0:00:19.1]} 39... Rd4 {[%clk
0:00:12.8]} 40. Qh5 {[%clk 0:00:17.9]} 40... Qd5+ {[%clk 0:00:11.6]} 41. Rg2
{[%clk 0:00:17.5]} 41... Qe4 {[%clk 0:00:11.6]} 42. g6 {[%clk 0:00:15.8]} 42...
fxg6 {[%clk 0:00:11.5]} 43. f7+ {[%clk 0:00:14.4]} 43... Kxf7 {[%clk 0:00:10.9]}
44. Rf1+ {[%clk 0:00:14.9]} 44... Ke8 {[%clk 0:00:11.4]} 45. Qh7 {[%clk
0:00:13.1]} 45... Ne7 {[%clk 0:00:11.1]} 46. Qh8+ {[%clk 0:00:11.4]} 46... Kd7
{[%clk 0:00:11.6]} 47. Qxb8 {[%clk 0:00:11.8]} 47... d2 {[%clk 0:00:11.5]} 48.
Qa7+ {[%clk 0:00:11.9]} 48... Ke8 {[%clk 0:00:07.5]} 49. Qb8+ {[%clk 0:00:11.8]}
49... Rd8 {[%clk 0:00:07.4]} 50. Qb5+ {[%clk 0:00:12.1]} 50... Nbc6 {[%clk
0:00:06.3]} 51. Rd1 {[%clk 0:00:09.1]} 51... Qf3 {[%clk 0:00:03.5]} 52. Qe2
{[%clk 0:00:08.2]} 52... Qxe2 {[%clk 0:00:03.3]} 53. Rxe2 {[%clk 0:00:09.1]}
53... Nf5 {[%clk 0:00:02.4]} 54. Rdxd2 {[%clk 0:00:09.3]} 54... Rxd2 {[%clk
0:00:02.9]} 55. Rxd2 {[%clk 0:00:10.2]} 55... Nxe5 {[%clk 0:00:02.5]} 56. Rc2
{[%clk 0:00:10.7]} 56... Nd3 {[%clk 0:00:02.7]} 57. Rc4 {[%clk 0:00:10.2]} 57...
Nxb2 {[%clk 0:00:03]} 58. Rc5 {[%clk 0:00:09.9]} 58... Nd3 {[%clk 0:00:03.3]}
59. Rxa5 {[%clk 0:00:10.3]} 59... Ke7 {[%clk 0:00:03.9]} 60. Kg2 {[%clk
0:00:10.4]} 60... Nf4+ {[%clk 0:00:04]} 61. Kf3 {[%clk 0:00:10.3]} 61... Nd5
{[%clk 0:00:04.9]} 62. Rxa4 {[%clk 0:00:10.9]} 62... Kf6 {[%clk 0:00:05.4]} 63.
Ra7 {[%clk 0:00:11.8]} 63... Nd4+ {[%clk 0:00:05.5]} 64. Ke4 {[%clk 0:00:11.8]}
64... Nc6 {[%clk 0:00:06.4]} 65. Ra8 {[%clk 0:00:11.3]} 65... Nce7 {[%clk
0:00:06.9]} 66. Nb5 {[%clk 0:00:11.6]} 66... Nf5 {[%clk 0:00:06.8]} 67. Nd4
{[%clk 0:00:11]} 67... Nxd4 {[%clk 0:00:06.1]} 68. Kxd4 {[%clk 0:00:11.2]} 68...
Ne7 {[%clk 0:00:06.8]} 69. Rf8+ {[%clk 0:00:10.5]} 69... Kg7 {[%clk 0:00:07]}
70. Rf1 {[%clk 0:00:11.2]} 70... Nf5+ {[%clk 0:00:06.7]} 71. Ke5 {[%clk
0:00:11.8]} 71... Ne3 {[%clk 0:00:06.8]} 72. Rf3 {[%clk 0:00:11.5]} 72... Ng4+
{[%clk 0:00:06.7]} 73. Kxe6 {[%clk 0:00:11]} 73... Nxh2 {[%clk 0:00:07.6]} 74.
Rg3 {[%clk 0:00:11]} 74... Nf1 {[%clk 0:00:07.6]} 75. Rc3 {[%clk 0:00:10.7]}
75... Nh2 {[%clk 0:00:07.1]} 76. Rc7+ {[%clk 0:00:10.8]} 76... Kh6 {[%clk
0:00:07.2]} 77. Rc8 {[%clk 0:00:09.9]} 77... Ng4 {[%clk 0:00:06.5]} 78. Kf7
{[%clk 0:00:08.8]} 78... Ne5+ {[%clk 0:00:05.7]} 79. Kf6 {[%clk 0:00:08.6]}
79... Ng4+ {[%clk 0:00:06]} 80. Ke6 {[%clk 0:00:08.6]} 80... Kg5 {[%clk
0:00:05.9]} 81. Rc5+ {[%clk 0:00:09.2]} 81... Kf4 {[%clk 0:00:05.8]} 82. Kf7
{[%clk 0:00:09.1]} 82... Ne5+ {[%clk 0:00:04.4]} 83. Kg7 {[%clk 0:00:08.4]}
83... g5 {[%clk 0:00:04.7]} 84. Kf6 {[%clk 0:00:08.3]} 84... Nd7+ {[%clk
0:00:04.4]} 85. Kg6 {[%clk 0:00:07.1]} 85... Nxc5 {[%clk 0:00:05.3]} 86. Kh5
{[%clk 0:00:07.9]} 86... g4 {[%clk 0:00:06]} 87. Kh4 {[%clk 0:00:08.7]} 87...
Kf3 {[%clk 0:00:06.6]} 88. Kg5 {[%clk 0:00:08.8]} 88... Ne4+ {[%clk 0:00:07.2]}
89. Kf5 {[%clk 0:00:08]} 89... g3 {[%clk 0:00:08.1]} 0-1